[Event "*** MasterClass Titled Tuesday Blitz"]
[Site "Chess.com"]
[Date "2017.07.04"]
[Round "5"]
[White "SipkeErnst"]
[Black "Jospem"]
[Result "0-1"]
[WhiteElo "2462"]
[BlackElo "2606"]
[TimeControl "180+2"]
[EndTime "14:03:02 PDT"]
[Termination "Jospem won by checkmate"]

1. d4 {[%clk 0:03:01.9]} 1... Nf6 {[%clk 0:02:59.7]} 2. c4 {[%clk 0:03:02.4]}
2... e6 {[%clk 0:03:01]} 3. Nc3 {[%clk 0:03:03.9]} 3... Bb4 {[%clk 0:03:02.2]}
4. e3 {[%clk 0:03:04.1]} 4... O-O {[%clk 0:03:03]} 5. Bd3 {[%clk 0:03:04.5]}
5... b6 {[%clk 0:03:04]} 6. Ne2 {[%clk 0:02:57.2]} 6... Bb7 {[%clk 0:03:05.1]}
7. O-O {[%clk 0:02:57.9]} 7... c5 {[%clk 0:03:02.2]} 8. d5 {[%clk 0:02:46]} 8...
exd5 {[%clk 0:02:50.2]} 9. Nxd5 {[%clk 0:02:44.5]} 9... Ba5 {[%clk 0:02:19.8]}
10. e4 {[%clk 0:02:41.1]} 10... Bxd5 {[%clk 0:02:14.5]} 11. exd5 {[%clk
0:02:38.8]} 11... d6 {[%clk 0:02:15.3]} 12. Bg5 {[%clk 0:02:21.6]} 12... Nbd7
{[%clk 0:02:16.3]} 13. Ng3 {[%clk 0:02:21.6]} 13... g6 {[%clk 0:02:14.2]} 14.
Ne4 {[%clk 0:02:11.6]} 14... Re8 {[%clk 0:01:51.6]} 15. Nxf6+ {[%clk 0:02:08.6]}
15... Nxf6 {[%clk 0:01:50.6]} 16. Qf3 {[%clk 0:02:04.2]} 16... Kg7 {[%clk
0:01:51.6]} 17. Qf4 {[%clk 0:01:38.1]} 17... Nh5 {[%clk 0:01:45.5]} 18. Qh4
{[%clk 0:01:39]} 18... f6 {[%clk 0:01:38.2]} 19. Bc1 {[%clk 0:01:39.3]} 19... f5
{[%clk 0:01:28.5]} 20. a3 {[%clk 0:01:39.5]} 20... Qxh4 {[%clk 0:01:28.4]} 21.
Re1 {[%clk 0:01:33]} 21... Rxe1+ {[%clk 0:01:28]} 22. Bf1 {[%clk 0:01:30.9]}
22... Qxc4 {[%clk 0:01:24]} 23. Kh1 {[%clk 0:01:31.4]} 23... Qxf1# {[%clk
0:01:24.5]} 0-1

[Event "*** MasterClass Titled Tuesday Blitz"]
[Site "Chess.com"]
[Date "2017.07.04"]
[Round "5"]
[White "Keranke"]
[Black "JeffReinberg"]
[Result "1-0"]
[WhiteElo "2649"]
[BlackElo "2461"]
[TimeControl "180+2"]
[EndTime "14:03:46 PDT"]
[Termination "Keranke won on time"]

1. d4 {[%clk 0:03:01.9]} 1... d5 {[%clk 0:02:58.3]} 2. Bf4 {[%clk 0:03:02.9]}
2... Nf6 {[%clk 0:02:57.4]} 3. e3 {[%clk 0:03:04.1]} 3... c6 {[%clk 0:02:55.3]}
4. c4 {[%clk 0:03:04.5]} 4... Bf5 {[%clk 0:02:54.4]} 5. Nc3 {[%clk 0:03:05]}
5... e6 {[%clk 0:02:54.3]} 6. Qb3 {[%clk 0:03:05.9]} 6... Qc8 {[%clk 0:02:10.5]}
7. Rc1 {[%clk 0:03:02.9]} 7... dxc4 {[%clk 0:02:04.7]} 8. Bxc4 {[%clk
0:03:04.8]} 8... Nbd7 {[%clk 0:01:59.6]} 9. Nf3 {[%clk 0:03:01.8]} 9... Nh5
{[%clk 0:01:57.6]} 10. Be5 {[%clk 0:02:57.8]} 10... Nxe5 {[%clk 0:01:56.5]} 11.
dxe5 {[%clk 0:02:58.5]} 11... Be7 {[%clk 0:01:32.5]} 12. h3 {[%clk 0:02:58.2]}
12... O-O {[%clk 0:01:06.3]} 13. g4 {[%clk 0:02:59.1]} 13... Bg6 {[%clk
0:01:07.6]} 14. gxh5 {[%clk 0:02:43.3]} 14... Bxh5 {[%clk 0:01:09.5]} 15. Nd4
{[%clk 0:02:44.4]} 15... Kh8 {[%clk 0:00:49.2]} 16. Be2 {[%clk 0:02:41]} 16...
Bg6 {[%clk 0:00:44.6]} 17. h4 {[%clk 0:02:41.8]} 17... c5 {[%clk 0:00:18.5]} 18.
Ndb5 {[%clk 0:02:39.2]} 18... a6 {[%clk 0:00:17.2]} 19. h5 {[%clk 0:02:26]}
19... Bf5 {[%clk 0:00:14.7]} 20. e4 {[%clk 0:02:25.2]} 20... Qc6 {[%clk
0:00:14.1]} 21. Nd6 {[%clk 0:02:06.5]} 21... Bg5 {[%clk 0:00:06.4]} 22. Rd1
{[%clk 0:02:02.7]} 1-0

[Event "*** MasterClass Titled Tuesday Blitz"]
[Site "Chess.com"]
[Date "2017.07.04"]
[Round "5"]
[White "IMJonathanCarlstedt"]
[Black "Aguiar94"]
[Result "1-0"]
[WhiteElo "2484"]
[BlackElo "2408"]
[TimeControl "180+2"]
[EndTime "14:03:47 PDT"]
[Termination "IMJonathanCarlstedt won by resignation"]

1. d4 {[%clk 0:03:01.9]} 1... Nf6 {[%clk 0:02:59.6]} 2. Bf4 {[%clk 0:03:02.1]}
2... d5 {[%clk 0:02:59.2]} 3. e3 {[%clk 0:03:02.4]} 3... c5 {[%clk 0:03:00.3]}
4. c3 {[%clk 0:03:03.3]} 4... Nc6 {[%clk 0:02:59.1]} 5. Nd2 {[%clk 0:03:03.5]}
5... Qb6 {[%clk 0:02:57.8]} 6. Qb3 {[%clk 0:03:03.9]} 6... c4 {[%clk 0:02:59]}
7. Qc2 {[%clk 0:03:04.6]} 7... g6 {[%clk 0:02:58.3]} 8. e4 {[%clk 0:03:05.3]}
8... Nxe4 {[%clk 0:02:54.3]} 9. Nxe4 {[%clk 0:03:04.5]} 9... Bf5 {[%clk
0:02:54.4]} 10. f3 {[%clk 0:03:05.4]} 10... Rc8 {[%clk 0:02:49.1]} 11. g4 {[%clk
0:03:05.6]} 11... dxe4 {[%clk 0:02:28.9]} 12. gxf5 {[%clk 0:03:05.8]} 12... exf3
{[%clk 0:02:14.2]} 13. fxg6 {[%clk 0:03:04.9]} 13... hxg6 {[%clk 0:02:14.1]} 14.
Nxf3 {[%clk 0:03:05.4]} 14... Bg7 {[%clk 0:02:11.8]} 15. O-O-O {[%clk
0:03:04.4]} 15... Qa6 {[%clk 0:02:05.9]} 16. Kb1 {[%clk 0:03:03.8]} 16... b5
{[%clk 0:02:06.4]} 17. d5 {[%clk 0:03:00.2]} 17... Na5 {[%clk 0:02:04.2]} 18. d6
{[%clk 0:03:00.6]} 18... O-O {[%clk 0:01:53.5]} 19. d7 {[%clk 0:03:00.3]} 19...
Ra8 {[%clk 0:01:51.5]} 20. Bg2 {[%clk 0:02:58.8]} 20... Nc6 {[%clk 0:01:50.3]}
21. Ne5 {[%clk 0:02:55.1]} 21... Nxe5 {[%clk 0:01:49]} 22. Bxe5 {[%clk
0:02:55.5]} 22... Rad8 {[%clk 0:01:43.8]} 23. Bc7 {[%clk 0:02:55.3]} 23... b4
{[%clk 0:01:35]} 24. Bxd8 {[%clk 0:02:55.7]} 24... Rxd8 {[%clk 0:01:34.8]} 25.
cxb4 {[%clk 0:02:56.4]} 25... Qb5 {[%clk 0:01:26.5]} 26. Rd5 {[%clk 0:02:54.5]}
26... Qxb4 {[%clk 0:01:26]} 27. Rhd1 {[%clk 0:02:30.3]} 27... e6 {[%clk
0:01:16.9]} 28. Rd6 {[%clk 0:02:21.4]} 28... Be5 {[%clk 0:01:16.7]} 29. Rc6
{[%clk 0:02:19.9]} 29... c3 {[%clk 0:00:59.1]} 30. Rc8 {[%clk 0:02:20.4]} 30...
Qb6 {[%clk 0:00:55.2]} 31. Rxd8+ {[%clk 0:02:12.9]} 31... Qxd8 {[%clk
0:00:57.1]} 32. Qe4 {[%clk 0:02:14.2]} 32... Bf6 {[%clk 0:00:51.8]} 33. Qa8
{[%clk 0:02:13]} 1-0

[Event "*** MasterClass Titled Tuesday Blitz"]
[Site "Chess.com"]
[Date "2017.07.04"]
[Round "5"]
[White "Tesla37"]
[Black "x-3738459472"]
[Result "1-0"]
[WhiteElo "2635"]
[BlackElo "2457"]
[TimeControl "180+2"]
[EndTime "14:04:09 PDT"]
[Termination "Tesla37 won by resignation"]

1. Nf3 {[%clk 0:03:01.9]} 1... Nf6 {[%clk 0:02:59.7]} 2. g3 {[%clk 0:03:02.9]}
2... d5 {[%clk 0:02:56.6]} 3. Bg2 {[%clk 0:03:03.7]} 3... c6 {[%clk 0:02:56.6]}
4. O-O {[%clk 0:03:05.1]} 4... Bf5 {[%clk 0:02:56.3]} 5. c4 {[%clk 0:03:05.3]}
5... e6 {[%clk 0:02:56.4]} 6. d3 {[%clk 0:03:03.1]} 6... Be7 {[%clk 0:02:55.6]}
7. Qb3 {[%clk 0:03:03.2]} 7... Qb6 {[%clk 0:02:54.4]} 8. Qc2 {[%clk 0:03:03]}
8... O-O {[%clk 0:02:51.4]} 9. cxd5 {[%clk 0:02:52.7]} 9... cxd5 {[%clk
0:02:49.6]} 10. Be3 {[%clk 0:02:52.3]} 10... Qa6 {[%clk 0:02:45]} 11. Nd4 {[%clk
0:02:41.4]} 11... Bg6 {[%clk 0:02:44.5]} 12. a4 {[%clk 0:02:41.8]} 12... Nc6
{[%clk 0:02:41.6]} 13. Nxc6 {[%clk 0:02:32.4]} 13... bxc6 {[%clk 0:02:41.3]} 14.
Rc1 {[%clk 0:02:24.9]} 14... Rfc8 {[%clk 0:02:31.1]} 15. Bc5 {[%clk 0:02:24.7]}
15... Bxc5 {[%clk 0:02:29.6]} 16. Qxc5 {[%clk 0:02:25.4]} 16... Qb7 {[%clk
0:02:30.4]} 17. Rc2 {[%clk 0:01:49.4]} 17... Nd7 {[%clk 0:02:26.6]} 18. Qd6
{[%clk 0:01:49.8]} 18... c5 {[%clk 0:02:26.3]} 19. Nc3 {[%clk 0:01:48.5]} 19...
c4 {[%clk 0:02:24.4]} 20. Nxd5 {[%clk 0:01:34.1]} 20... exd5 {[%clk 0:02:21.6]}
21. Bxd5 {[%clk 0:01:34.9]} 21... Qb3 {[%clk 0:02:16.9]} 22. Rac1 {[%clk
0:01:20.9]} 22... Nb6 {[%clk 0:02:01.4]} 23. Bxa8 {[%clk 0:01:19.5]} 23... Rxa8
{[%clk 0:02:01.2]} 24. a5 {[%clk 0:01:19.6]} 24... cxd3 {[%clk 0:00:44.6]} 25.
Rc8+ {[%clk 0:01:17.4]} 1-0

[Event "*** MasterClass Titled Tuesday Blitz"]
[Site "Chess.com"]
[Date "2017.07.04"]
[Round "5"]
[White "vpantev"]
[Black "OparinGrigoriy"]
[Result "1-0"]
[WhiteElo "2459"]
[BlackElo "2740"]
[TimeControl "180+2"]
[EndTime "14:04:13 PDT"]
[Termination "vpantev won by resignation"]

1. d4 {[%clk 0:03:01.9]} 1... Nf6 {[%clk 0:03:00.2]} 2. Nf3 {[%clk 0:03:02.6]}
2... e6 {[%clk 0:02:59.2]} 3. Bf4 {[%clk 0:03:00]} 3... Nc6 {[%clk 0:02:54.4]}
4. e3 {[%clk 0:02:59.4]} 4... Ne7 {[%clk 0:02:54.3]} 5. h3 {[%clk 0:02:59.7]}
5... Ng6 {[%clk 0:02:55]} 6. Bh2 {[%clk 0:03:00.4]} 6... c5 {[%clk 0:02:55.9]}
7. c3 {[%clk 0:03:01.1]} 7... b6 {[%clk 0:02:56.9]} 8. Nbd2 {[%clk 0:03:01.5]}
8... Bb7 {[%clk 0:02:58.4]} 9. Be2 {[%clk 0:03:00.4]} 9... Be7 {[%clk
0:02:59.7]} 10. O-O {[%clk 0:03:01.1]} 10... O-O {[%clk 0:02:57.1]} 11. a4
{[%clk 0:03:01.5]} 11... cxd4 {[%clk 0:02:53.2]} 12. exd4 {[%clk 0:03:01.9]}
12... d6 {[%clk 0:02:49.4]} 13. Re1 {[%clk 0:00:50.8]} 13... Nd5 {[%clk
0:02:47.2]} 14. Bf1 {[%clk 0:00:51.4]} 14... Qd7 {[%clk 0:02:42.9]} 15. Qb3
{[%clk 0:00:50.2]} 15... Rfb8 {[%clk 0:02:30]} 16. Bb5 {[%clk 0:00:50.8]} 16...
Qd8 {[%clk 0:02:28]} 17. Bg3 {[%clk 0:00:49.1]} 17... Ngf4 {[%clk 0:02:26.1]}
18. Bf1 {[%clk 0:00:49.8]} 18... h6 {[%clk 0:02:16.3]} 19. c4 {[%clk 0:00:50.6]}
19... Nh5 {[%clk 0:02:07.3]} 20. cxd5 {[%clk 0:00:51]} 20... Nxg3 {[%clk
0:02:08.6]} 21. fxg3 {[%clk 0:00:51.1]} 21... Bxd5 {[%clk 0:02:10.1]} 22. Bc4
{[%clk 0:00:51.9]} 22... Bb7 {[%clk 0:02:10]} 23. Bxe6 {[%clk 0:00:44.5]} 23...
fxe6 {[%clk 0:02:08.1]} 24. Qxe6+ {[%clk 0:00:44.3]} 24... Kf8 {[%clk
0:02:08.9]} 25. Nh4 {[%clk 0:00:41.6]} 25... Bxh4 {[%clk 0:01:29.9]} 26. gxh4
{[%clk 0:00:41.6]} 1-0

[Event "*** MasterClass Titled Tuesday Blitz"]
[Site "Chess.com"]
[Date "2017.07.04"]
[Round "5"]
[White "aspired"]
[Black "JammyDodger91"]
[Result "1-0"]
[WhiteElo "2522"]
[BlackElo "2290"]
[TimeControl "180+2"]
[EndTime "14:04:17 PDT"]
[Termination "aspired won by resignation"]

1. e4 {[%clk 0:03:01.9]} 1... c5 {[%clk 0:02:59.5]} 2. Nf3 {[%clk 0:03:01.5]}
2... e6 {[%clk 0:02:59.9]} 3. d4 {[%clk 0:03:01.4]} 3... cxd4 {[%clk 0:03:01.8]}
4. Nxd4 {[%clk 0:03:02.8]} 4... a6 {[%clk 0:03:03.5]} 5. Nc3 {[%clk 0:03:00.2]}
5... Qc7 {[%clk 0:03:04.1]} 6. Qf3 {[%clk 0:02:57]} 6... Nf6 {[%clk 0:02:54.3]}
7. Bg5 {[%clk 0:02:56.6]} 7... Be7 {[%clk 0:02:49.5]} 8. Bd3 {[%clk 0:02:47.6]}
8... d6 {[%clk 0:02:48.4]} 9. O-O-O {[%clk 0:02:36.6]} 9... Nbd7 {[%clk
0:02:45.5]} 10. Qg3 {[%clk 0:02:33.8]} 10... b5 {[%clk 0:01:56]} 11. Bxb5 {[%clk
0:02:32.6]} 11... axb5 {[%clk 0:01:55]} 12. Ndxb5 {[%clk 0:02:34.5]} 12... Qb8
{[%clk 0:01:55.2]} 13. Nxd6+ {[%clk 0:02:31.5]} 13... Bxd6 {[%clk 0:01:53]} 14.
Rxd6 {[%clk 0:02:33.4]} 14... Nh5 {[%clk 0:01:44.4]} 15. Qd3 {[%clk 0:02:17.4]}
15... h6 {[%clk 0:01:37.2]} 16. Be3 {[%clk 0:01:53.6]} 16... O-O {[%clk
0:00:55.5]} 17. Rd1 {[%clk 0:01:49.7]} 17... Nhf6 {[%clk 0:00:46.6]} 18. f4
{[%clk 0:01:40.2]} 18... e5 {[%clk 0:00:30.7]} 19. f5 {[%clk 0:01:19.9]} 19...
Ba6 {[%clk 0:00:17.2]} 20. Rxa6 {[%clk 0:01:17.5]} 20... Rxa6 {[%clk 0:00:16.6]}
21. Qxa6 {[%clk 0:01:19.4]} 1-0

[Event "*** MasterClass Titled Tuesday Blitz"]
[Site "Chess.com"]
[Date "2017.07.04"]
[Round "5"]
[White "mokerslag"]
[Black "Schemato"]
[Result "1-0"]
[WhiteElo "2479"]
[BlackElo "2305"]
[TimeControl "180+2"]
[EndTime "14:04:24 PDT"]
[Termination "mokerslag won by resignation"]

1. e4 {[%clk 0:03:01.9]} 1... e6 {[%clk 0:02:59.9]} 2. d4 {[%clk 0:03:01.7]}
2... d5 {[%clk 0:03:01.1]} 3. Nd2 {[%clk 0:03:02.1]} 3... Be7 {[%clk 0:03:01.9]}
4. e5 {[%clk 0:02:59.6]} 4... b6 {[%clk 0:03:01.6]} 5. Ngf3 {[%clk 0:02:57.2]}
5... h5 {[%clk 0:02:57.3]} 6. Bd3 {[%clk 0:02:56.9]} 6... Ba6 {[%clk 0:02:57.4]}
7. c4 {[%clk 0:02:55.3]} 7... Qd7 {[%clk 0:02:37.5]} 8. b3 {[%clk 0:02:52.2]}
8... Bb4 {[%clk 0:02:29.8]} 9. O-O {[%clk 0:02:47.4]} 9... Ne7 {[%clk
0:02:29.8]} 10. Qc2 {[%clk 0:02:31.6]} 10... Nbc6 {[%clk 0:02:18.5]} 11. Bb2
{[%clk 0:02:27.8]} 11... Bxd2 {[%clk 0:02:05.8]} 12. Qxd2 {[%clk 0:02:27.1]}
12... dxc4 {[%clk 0:02:00.3]} 13. bxc4 {[%clk 0:02:21.9]} 13... O-O-O {[%clk
0:01:55.5]} 14. a4 {[%clk 0:02:15.2]} 14... Na5 {[%clk 0:01:54.6]} 15. Qc2
{[%clk 0:02:10.3]} 15... Nec6 {[%clk 0:01:44.3]} 16. c5 {[%clk 0:01:45.9]} 16...
Bxd3 {[%clk 0:01:31.8]} 17. Qxd3 {[%clk 0:01:46.6]} 17... Nb4 {[%clk 0:01:33.4]}
18. Qe4 {[%clk 0:01:40.2]} 18... Qc6 {[%clk 0:01:24]} 19. Qe2 {[%clk 0:01:37.6]}
19... Kb7 {[%clk 0:01:08]} 20. Bc3 {[%clk 0:01:34.2]} 20... bxc5 {[%clk
0:00:56.6]} 21. dxc5 {[%clk 0:01:34.2]} 21... Qxc5 {[%clk 0:00:54.7]} 22. Bxb4
{[%clk 0:01:23]} 22... Qxb4 {[%clk 0:00:54.7]} 23. Rfb1 {[%clk 0:01:21.5]} 23...
Nb3 {[%clk 0:00:54.8]} 24. Qe3 {[%clk 0:01:19.2]} 24... Ka8 {[%clk 0:00:35.5]}
25. Rxb3 {[%clk 0:01:16.5]} 1-0

[Event "*** MasterClass Titled Tuesday Blitz"]
[Site "Chess.com"]
[Date "2017.07.04"]
[Round "5"]
[White "MITerryble"]
[Black "nihalsarin"]
[Result "1-0"]
[WhiteElo "2653"]
[BlackElo "2631"]
[TimeControl "180+2"]
[EndTime "14:04:46 PDT"]
[Termination "MITerryble won by resignation"]

1. d4 {[%clk 0:03:01.9]} 1... Nf6 {[%clk 0:02:59.9]} 2. Nf3 {[%clk 0:03:02.7]}
2... d5 {[%clk 0:03:00.1]} 3. c4 {[%clk 0:03:03.3]} 3... e6 {[%clk 0:03:01]} 4.
e3 {[%clk 0:03:04]} 4... b6 {[%clk 0:03:00.3]} 5. Bd3 {[%clk 0:03:02.9]} 5...
Bb7 {[%clk 0:03:01.3]} 6. O-O {[%clk 0:03:03.6]} 6... Bd6 {[%clk 0:03:02.5]} 7.
b3 {[%clk 0:03:04.2]} 7... O-O {[%clk 0:03:03.2]} 8. Bb2 {[%clk 0:03:05.5]} 8...
Nbd7 {[%clk 0:03:03.7]} 9. Nbd2 {[%clk 0:03:05.8]} 9... a6 {[%clk 0:03:04.7]}
10. Ne5 {[%clk 0:03:06.2]} 10... c5 {[%clk 0:03:04.1]} 11. Qc2 {[%clk 0:02:59]}
11... h6 {[%clk 0:03:00.3]} 12. f4 {[%clk 0:02:58.8]} 12... Rc8 {[%clk
0:03:00.7]} 13. Rac1 {[%clk 0:02:59.4]} 13... b5 {[%clk 0:02:38.4]} 14. Qb1
{[%clk 0:02:59.4]} 14... bxc4 {[%clk 0:02:38.2]} 15. bxc4 {[%clk 0:03:00.1]}
15... cxd4 {[%clk 0:02:38.1]} 16. Bxd4 {[%clk 0:03:00.8]} 16... Rb8 {[%clk
0:02:34.9]} 17. c5 {[%clk 0:02:54.7]} 17... Bxe5 {[%clk 0:02:33.3]} 18. fxe5
{[%clk 0:02:53.6]} 18... Ng4 {[%clk 0:02:34.5]} 19. Nf3 {[%clk 0:02:54.6]} 19...
Bc6 {[%clk 0:02:29.9]} 20. Qc2 {[%clk 0:02:46.4]} 20... f6 {[%clk 0:02:30.3]}
21. exf6 {[%clk 0:02:42.1]} 21... Ngxf6 {[%clk 0:02:29.7]} 22. Bxa6 {[%clk
0:02:28.6]} 22... Qc7 {[%clk 0:02:24.7]} 23. Qg6 {[%clk 0:02:15]} 23... e5
{[%clk 0:02:14.8]} 24. Ba1 {[%clk 0:02:15.7]} 24... Ra8 {[%clk 0:01:52.9]} 25.
Bd3 {[%clk 0:01:27]} 25... e4 {[%clk 0:01:17.8]} 26. Nh4 {[%clk 0:01:26.9]}
26... Ne5 {[%clk 0:00:58]} 27. Qg3 {[%clk 0:01:19.3]} 27... Rae8 {[%clk
0:00:50.1]} 28. Be2 {[%clk 0:01:15.8]} 28... Kh7 {[%clk 0:00:45.7]} 29. Ng6
{[%clk 0:01:13.2]} 29... d4 {[%clk 0:00:38.1]} 30. Nxf8+ {[%clk 0:01:10.3]}
30... Rxf8 {[%clk 0:00:38.7]} 31. exd4 {[%clk 0:01:11.4]} 1-0

[Event "*** MasterClass Titled Tuesday Blitz"]
[Site "Chess.com"]
[Date "2017.07.04"]
[Round "5"]
[White "BigMak2500"]
[Black "dretch"]
[Result "1-0"]
[WhiteElo "2395"]
[BlackElo "2480"]
[TimeControl "180+2"]
[EndTime "14:04:56 PDT"]
[Termination "BigMak2500 won by checkmate"]

1. e4 {[%clk 0:03:01.9]} 1... e6 {[%clk 0:03:01.2]} 2. d4 {[%clk 0:03:01.3]}
2... d5 {[%clk 0:03:02.8]} 3. Nc3 {[%clk 0:03:01.6]} 3... Nf6 {[%clk 0:03:00]}
4. Bg5 {[%clk 0:03:01.1]} 4... dxe4 {[%clk 0:03:00.2]} 5. Nxe4 {[%clk 0:03:03]}
5... Be7 {[%clk 0:03:01.3]} 6. Nxf6+ {[%clk 0:03:01.8]} 6... Bxf6 {[%clk
0:03:03.2]} 7. Bxf6 {[%clk 0:03:02.5]} 7... Qxf6 {[%clk 0:03:04.8]} 8. Nf3
{[%clk 0:03:03.5]} 8... c5 {[%clk 0:03:05.9]} 9. c4 {[%clk 0:02:49.6]} 9... Nc6
{[%clk 0:03:02.1]} 10. d5 {[%clk 0:02:48]} 10... Ne5 {[%clk 0:02:52.6]} 11. Be2
{[%clk 0:02:43.4]} 11... O-O {[%clk 0:02:47.6]} 12. O-O {[%clk 0:02:44]} 12...
Rd8 {[%clk 0:02:47.7]} 13. Re1 {[%clk 0:02:40.4]} 13... exd5 {[%clk 0:02:40.9]}
14. cxd5 {[%clk 0:02:30.1]} 14... Be6 {[%clk 0:02:16.7]} 15. Nxe5 {[%clk
0:02:24.2]} 15... Qxe5 {[%clk 0:02:00.9]} 16. Bc4 {[%clk 0:02:25.2]} 16... Qf5
{[%clk 0:01:51.8]} 17. dxe6 {[%clk 0:01:48.4]} 17... Rxd1 {[%clk 0:01:51.7]} 18.
Raxd1 {[%clk 0:01:48]} 18... g6 {[%clk 0:00:26]} 19. e7 {[%clk 0:01:40]} 19...
Qf6 {[%clk 0:00:24.3]} 20. e8=Q+ {[%clk 0:01:13]} 20... Rxe8 {[%clk 0:00:25]}
21. Rxe8+ {[%clk 0:01:14.6]} 21... Kg7 {[%clk 0:00:26.9]} 22. Rd7 {[%clk
0:01:12.8]} 22... Qxb2 {[%clk 0:00:27.7]} 23. Rxf7+ {[%clk 0:01:12.1]} 23... Kh6
{[%clk 0:00:28.9]} 24. Ree7 {[%clk 0:01:03.4]} 24... Qc1+ {[%clk 0:00:20]} 25.
Bf1 {[%clk 0:01:00.9]} 25... g5 {[%clk 0:00:21.6]} 26. Rf6+ {[%clk 0:00:58.3]}
26... Kh5 {[%clk 0:00:23]} 27. Rxh7+ {[%clk 0:00:57.3]} 27... Kg4 {[%clk
0:00:24]} 28. f3# {[%clk 0:00:58.2]} 1-0

[Event "*** MasterClass Titled Tuesday Blitz"]
[Site "Chess.com"]
[Date "2017.07.04"]
[Round "5"]
[White "AllStarShark"]
[Black "Andrjywa"]
[Result "0-1"]
[WhiteElo "2280"]
[BlackElo "2298"]
[TimeControl "180+2"]
[EndTime "14:04:56 PDT"]
[Termination "Andrjywa won on time"]

1. d4 {[%clk 0:03:01.9]} 1... Nf6 {[%clk 0:03:00.6]} 2. Bg5 {[%clk 0:02:57]}
2... e6 {[%clk 0:02:59.5]} 3. e4 {[%clk 0:02:56.8]} 3... Be7 {[%clk 0:03:00.2]}
4. e5 {[%clk 0:02:57.2]} 4... Nd5 {[%clk 0:03:00.5]} 5. Bxe7 {[%clk 0:02:58]}
5... Qxe7 {[%clk 0:02:59.3]} 6. Nf3 {[%clk 0:02:58.9]} 6... f5 {[%clk
0:02:57.4]} 7. exf6 {[%clk 0:02:56]} 7... Qxf6 {[%clk 0:02:56.9]} 8. c3 {[%clk
0:02:55.8]} 8... O-O {[%clk 0:02:57.3]} 9. Bd3 {[%clk 0:02:56.1]} 9... Nc6
{[%clk 0:02:58]} 10. Qc2 {[%clk 0:02:53.5]} 10... Nf4 {[%clk 0:02:50.7]} 11. Bf1
{[%clk 0:02:47.1]} 11... e5 {[%clk 0:02:48.5]} 12. Nbd2 {[%clk 0:02:22.5]} 12...
exd4 {[%clk 0:02:46.9]} 13. cxd4 {[%clk 0:02:23.2]} 13... Re8+ {[%clk
0:02:42.4]} 14. Kd1 {[%clk 0:01:53.9]} 14... d5 {[%clk 0:02:42]} 15. g3 {[%clk
0:01:49.6]} 15... Bf5 {[%clk 0:02:23.4]} 16. Qa4 {[%clk 0:01:23.7]} 16... Nd3
{[%clk 0:02:13]} 17. Bxd3 {[%clk 0:01:20.4]} 17... Bxd3 {[%clk 0:02:14.9]} 18.
Re1 {[%clk 0:01:19.7]} 18... Rxe1+ {[%clk 0:01:55.3]} 19. Kxe1 {[%clk
0:01:21.6]} 19... Qe6+ {[%clk 0:01:48.9]} 20. Kd1 {[%clk 0:01:20.8]} 20... Qe2+
{[%clk 0:01:45]} 21. Kc1 {[%clk 0:01:21.8]} 21... Re8 {[%clk 0:01:43.5]} 22. Qd1
{[%clk 0:01:21.8]} 22... Qxf2 {[%clk 0:01:38.8]} 23. b3 {[%clk 0:01:21.5]} 23...
Nxd4 {[%clk 0:01:37.1]} 24. Kb2 {[%clk 0:01:21.2]} 24... Nxf3 {[%clk 0:01:36.4]}
25. Qxf3 {[%clk 0:01:22.1]} 25... Qxd2+ {[%clk 0:01:34.8]} 26. Ka3 {[%clk
0:01:24]} 26... Qa5+ {[%clk 0:01:29.8]} 27. Kb2 {[%clk 0:01:24.1]} 27... Re2+
{[%clk 0:01:29.4]} 0-1

[Event "*** MasterClass Titled Tuesday Blitz"]
[Site "Chess.com"]
[Date "2017.07.04"]
[Round "5"]
[White "Tonychess32"]
[Black "AkshatChandra"]
[Result "0-1"]
[WhiteElo "2446"]
[BlackElo "2661"]
[TimeControl "180+2"]
[EndTime "14:05:26 PDT"]
[Termination "AkshatChandra won by resignation"]

1. e4 {[%clk 0:03:01.9]} 1... c5 {[%clk 0:03:00.2]} 2. Nf3 {[%clk 0:03:00.9]}
2... d6 {[%clk 0:03:01.1]} 3. d4 {[%clk 0:03:01.4]} 3... cxd4 {[%clk 0:03:03]}
4. Nxd4 {[%clk 0:03:02]} 4... Nf6 {[%clk 0:03:03.8]} 5. Nc3 {[%clk 0:03:02.9]}
5... a6 {[%clk 0:03:04.9]} 6. h3 {[%clk 0:03:03.1]} 6... e6 {[%clk 0:03:04.9]}
7. g4 {[%clk 0:03:02]} 7... Be7 {[%clk 0:03:06.2]} 8. Be3 {[%clk 0:03:02.9]}
8... b5 {[%clk 0:03:05.6]} 9. Bg2 {[%clk 0:03:03.4]} 9... Bb7 {[%clk 0:03:06.5]}
10. g5 {[%clk 0:03:01]} 10... Nfd7 {[%clk 0:03:07]} 11. Qd2 {[%clk 0:02:59.8]}
11... Nc6 {[%clk 0:03:07.2]} 12. O-O-O {[%clk 0:02:58.2]} 12... Nc5 {[%clk
0:03:05.4]} 13. h4 {[%clk 0:02:53.4]} 13... b4 {[%clk 0:03:00.8]} 14. Nce2
{[%clk 0:02:43.3]} 14... Qa5 {[%clk 0:02:47.9]} 15. Kb1 {[%clk 0:02:44.2]} 15...
Nxd4 {[%clk 0:02:43.6]} 16. Bxd4 {[%clk 0:01:44.8]} 16... Nxe4 {[%clk
0:02:36.9]} 17. Bxe4 {[%clk 0:01:38.1]} 17... Bxe4 {[%clk 0:02:38.8]} 18. f3
{[%clk 0:01:22.4]} 18... Bxf3 {[%clk 0:02:34.3]} 19. Rhf1 {[%clk 0:01:23.4]}
19... Bxe2 {[%clk 0:02:29.3]} 20. Qxe2 {[%clk 0:01:25.3]} 20... O-O {[%clk
0:02:30.5]} 21. Rg1 {[%clk 0:00:56.5]} 21... e5 {[%clk 0:02:27.9]} 22. Be3
{[%clk 0:00:54.3]} 22... d5 {[%clk 0:02:28.1]} 23. h5 {[%clk 0:00:53.8]} 23...
Rad8 {[%clk 0:02:19.7]} 24. g6 {[%clk 0:00:51.8]} 24... fxg6 {[%clk 0:02:16.3]}
25. hxg6 {[%clk 0:00:52.4]} 25... h6 {[%clk 0:02:18]} 26. Qh5 {[%clk 0:00:36.5]}
26... Bf6 {[%clk 0:02:09]} 27. Rdf1 {[%clk 0:00:19.4]} 27... Qc7 {[%clk
0:02:05.1]} 28. Rh1 {[%clk 0:00:20.4]} 28... e4 {[%clk 0:02:03.8]} 29. Bf4
{[%clk 0:00:17]} 29... Qe7 {[%clk 0:02:02]} 30. Bd2 {[%clk 0:00:08.4]} 30... e3
{[%clk 0:01:58.9]} 31. Re1 {[%clk 0:00:08.3]} 31... d4 {[%clk 0:01:54.1]} 32.
Bc1 {[%clk 0:00:09.5]} 32... Qe4 {[%clk 0:01:52]} 33. Rhf1 {[%clk 0:00:06.2]}
33... d3 {[%clk 0:01:52.8]} 34. cxd3 {[%clk 0:00:07.5]} 34... Qxd3+ {[%clk
0:01:54.5]} 35. Ka1 {[%clk 0:00:09.1]} 35... Bxb2+ {[%clk 0:01:48.4]} 36. Bxb2
{[%clk 0:00:09.6]} 36... Rxf1 {[%clk 0:01:50.3]} 37. Qh4 {[%clk 0:00:04.7]}
37... Rxe1+ {[%clk 0:01:48.4]} 38. Qxe1 {[%clk 0:00:05.5]} 38... Qd1+ {[%clk
0:01:49.6]} 0-1